Cogmind - Beta 14 @@@ ROGUE MODE // 2025.01.07 @ 19:27:44 Player: lazy_engineer Result: Destroyed by Shrapnel Trap Performance ------------- Evolutions (0) 0 Regions Visited (3) 600 Robots Destroyed (17) 85 Value Destroyed (618) 618 Prototype IDs (0) 0 Alien Tech Used (0) 0 Bonus (35) 35 TOTAL SCORE: 1338 Bonus ------- Follower Combat Kills 35 Cogmind --------- Core Integrity 0/250 Matter 300/300 Energy 123/125 System Corruption 0% Temperature Cool (1) Movement Core (300) Ox5 Location -10/Subcaves Parts ------- > --- POWER (1) -------- Light Ion Engine > --- PROPULSION (2) --- (None) > --- UTILITY (2) ------ Small Storage Unit Makeshift Light Armor Plating > --- WEAPON (2) ------- Light Assault Rifle Subdweller Machine Gun > --- INVENTORY (8) ---- Subdweller Power Source High-capacity Matter Pod (200) Experimental Sensor Array Tractor Beam Grenade Launcher Subdweller Shrapnel Launcher Peak State ------------ > --- POWER ------------ Ion Engine > --- PROPULSION ------- Light Treads Light Treads > --- UTILITY ---------- Small Storage Unit Makeshift Light Armor Plating > --- WEAPON ----------- Subdweller Machine Gun Makeshift Spear > --- INVENTORY -------- Light Ion Engine Light Treads High-capacity Matter Pod Experimental Sensor Array Tractor Beam Subdweller Beam Cannon Light Assault Rifle Grenade Launcher [Rating: 15] Favorites ----------- Power Ion Engine Engine Ion Engine Propulsion Light Treads Treads Light Treads Utility Small Storage Unit Storage Small Storage Unit Protection Makeshift Light Armor Plating Weapon Subdweller Machine Gun Energy Gun EM Pulse Gun Energy Cannon Subdweller Beam Cannon Ballistic Gun Subdweller Machine Gun Launcher Grenade Launcher Piercing Weapon Makeshift Spear Build | -11 -10 -10 -10 ------- Run | Yrd Mat Min Sub Slots Evolved . | . . . . Power . | . . . . Propulsion . | . . . . Utility . | . . . . Weapon . | . . . . Parts Attached 19 | 6 1 . 12 Power 2 | 1 . . 1 Engine 2 | 1 . . 1 Core . | . . . . Reactor . | . . . . Propulsion 4 | 2 . . 2 Treads 4 | 2 . . 2 Leg . | . . . . Wheel . | . . . . Hover . | . . . . Flight . | . . . . Utility 2 | 1 . . 1 Device . | . . . . Storage 1 | 1 . . . Processor . | . . . . Hackware . | . . . . Protection 1 | . . . 1 Artifact . | . . . . Weapon 11 | 2 1 . 8 Energy Gun 1 | 1 . . . Energy Cannon 1 | . . . 1 Ballistic Gun 6 | 1 . . 5 Ballistic Cannon . | . . . . Launcher 2 | . 1 . 1 Special Weapon . | . . . . Impact Weapon . | . . . . Slashing Weapon . | . . . . Piercing Weapon 1 | . . . 1 Special Melee Weapon . | . . . . Unidentified Prototypes . | . . . . Parts Lost 3 | . . . 3 Power . | . . . . Propulsion 2 | . . . 2 Utility . | . . . . Weapon 1 | . . . 1 Highest Loss Streak 2 | . . . 2 To Critical Strikes . | . . . . Average Slot Usage (%) 89 | . 85 85 92 Engine 10 | . 14 14 9 Treads 26 | . 28 28 26 Storage 14 | . 14 14 14 Protection 9 | . . . 13 Energy Gun 4 | . 14 14 . Energy Cannon 2 | . . . 3 Ballistic Gun 10 | . 10 . 14 Launcher 8 | . 3 14 6 Piercing Weapon 2 | . . . 3 Peak Build Rating 15 | 6 6 7 15 Average Rating 10 | 4 6 6 12 On Entrance 4 | . 6 6 7 Naked Turns . | . . . . Heaviest Build 25 | 13 15 15 25 Greatest Support 40 | 40 40 40 40 Greatest Overweight (x) . | . . . . Average Overweight (x) . | . . . . Largest Inventory Capacity 8 | 8 8 8 8 Average Capacity 7 | 7 8 8 8 Most Carried 8 | 4 5 7 8 Average Carried 7 | 1 3 6 7 Final Capacity 8 | 8 8 8 8 Final Carried 7 | 2 5 7 6 Class Distribution -------------------- 100% | Mutant Dominant Class ---------------- Mutant | -10/Materials Mutant | -10/Mines Mutant | -10/Subcaves Resources | -11 -10 -10 -10 ----------- Run | Yrd Mat Min Sub Matter Collected 856 | 261 . . 595 Remotely . | . . . . Salvage Created 769 | 93 . . 676 Parts 47 | 6 . . 41 Haulers Intercepted . | . . . . Recyclers Shooed . | . . . . Parts Field Recycled . | . . . . Retrieved Matter . | . . . . Parts Self-Destructed 8 | . . . 8 Prevented . | . . . . Kills | -11 -10 -10 -10 ------- Run | Yrd Mat Min Sub Combat Hostiles Destroyed 15 | . . . 15 Melee 1 | . . . 1 Guns 6 | . . . 6 Cannons 5 | . . . 5 AOE 3 | . . . 3 Classes Destroyed 6 | 2 . . 4 Tunneler 1 | 1 . . . Recycler 1 | 1 . . . Sentry 1 | . . . 1 Artisan 1 | . . . 1 Cobbler 1 | . . . 1 Subdweller 14 | . . . 14 Best Kill Streak 4 | 1 . . 4 Combat Bots Only 4 | . . . 4 Max Kills in Single Turn 1 | 1 . . 1 Gunslinging . | . . . . Exploded 1 | . . . 1 Melee 1 | . . . 1 Uniques/NPCs Destroyed . | . . . . Combat | -11 -10 -10 -10 -------- Run | Yrd Mat Min Sub Hostile Shots Fired 53 | . 9 2 42 Missed 19 | . 3 2 14 Damage Taken 1032 | . 63 . 969 Core 257 | . 11 . 246 Absorbed by Shields . | . . . . Core Remaining (%) 100 | 100 . . . Volleys Fired 49 | 4 3 . 42 Largest 2 | 2 2 . 2 Hottest 110 | 60 60 . 110 Shots Fired 90 | 8 5 . 77 Gun 63 | 8 4 . 51 Cannon 10 | . . . 10 Launcher 17 | . 1 . 16 Special . | . . . . Kinetic 57 | 4 2 . 51 Thermal 10 | . . . 10 Explosive 17 | . 1 . 16 Electromagnetic 6 | 4 2 . . Robot Hit Streak 13 | 3 6 . 13 Robot Miss Streak 1 | 1 . . 1 Penetration Max . | . . . . Secondary Targets . | . . . . Shots Hit Robots 66 | 5 4 . 57 Core Hits 32 | 2 1 . 29 Critical Kills . | . . . . Critical Parts Destroyed . | . . . . Critical Strikes . | . . . . Melee Attacks 18 | . . . 18 Impact . | . . . . Slashing . | . . . . Piercing 18 | . . . 18 Sneak Attacks 3 | . . . 3 Combat Hostiles . | . . . . Follow-up Attacks . | . . . . Damage Inflicted 1638 | 60 39 . 1539 Guns 787 | 60 39 . 688 Cannons 194 | . . . 194 Explosions 457 | . . . 457 Melee 200 | . . . 200 Ramming . | . . . . Kinetic 722 | 17 17 . 688 Thermal 194 | . . . 194 Explosive 457 | . . . 457 Electromagnetic 65 | 43 22 . . Impact . | . . . . Slashing . | . . . . Piercing 200 | . . . 200 Highest Corruption . | . . . . Average Corruption . | . . . . Corruption Purged . | . . . . Corruption Blocked . | . . . . Overload Shots . | . . . . Overflow Damage . | . . . . Projectiles . | . . . . Explosions . | . . . . Melee . | . . . . Knockbacks . | . . . . Impact . | . . . . Kinetic . | . . . . Secondary . | . . . . Self-Inflicted Damage 63 | . . . 63 Shots 3 | . . . 3 Rammed . | . . . . Targets Rammed . | . . . . Kicked . | . . . . Crushed . | . . . . Highest Temperature 40 | 40 20 . 34 Average Temperature 13 | 22 12 . 10 Received Heat Transfer 174 | . 36 . 138 Siege Activations . | . . . . Robots Corrupted . | . . . . Combat Hostiles . | . . . . Parts Fried . | . . . . Impact Corruptions . | . . . . Robots Melted . | . . . . Combat Hostiles . | . . . . Parts Melted . | . . . . Heat Transferred 259 | . . . 259 Parts Sabotaged . | . . . . Parts Stolen . | . . . . Parts Stripped . | . . . . Power Chain Reactions . | . . . . Alert | -11 -10 -10 -10 ------- Run | Yrd Mat Min Sub Peak Influence 40 | 10 40 32 . Initial 15 | . 6 15 . Average 12 | 3 25 11 . Maximum Alert Level . | . . . . Low Security (%) 100 | 100 100 100 . Level 1 . | . . . . Level 2 . | . . . . Level 3 . | . . . . Level 4 . | . . . . Level 5 . | . . . . High Security . | . . . . Max Security . | . . . . Squads Dispatched . | . . . . Investigation . | . . . . Extermination . | . . . . Reinforcement . | . . . . Assault . | . . . . Garrison . | . . . . Intercept . | . . . . Searches Triggered . | . . . . Construction Impeded . | . . . . Haulers Reinforced . | . . . . Active Scanning Responses . | . . . . Cargo Convoy Interrupts . | . . . . Stealth | -11 -10 -10 -10 --------- Run | Yrd Mat Min Sub Distress Signals 1 | . 1 . . Communications Jammed . | . . . . Distress Signals . | . . . . Times Spotted 20 | . 3 2 15 Peak Tracking Total 4 | . 4 1 2 Tactical Retreats . | . . . . Traps | -11 -10 -10 -10 ------- Run | Yrd Mat Min Sub Traps Triggered 1 | . . . 1 Indirectly . | . . . . Trap Hack Attempts . | . . . . Triggered . | . . . . Disarmed . | . . . . Reprogrammed . | . . . . Reused . | . . . . Traps Extracted . | . . . . Installed . | . . . . Triggered . | . . . . Machines | -11 -10 -10 -10 ---------- Run | Yrd Mat Min Sub Machines Disabled . | . . . . Max in Single Turn . | . . . . Machines Repaired . | . . . . Machines Dismantled . | . . . . Machines Sabotaged . | . . . . Overloaded Fab Kills . | . . . . Hacking | -11 -10 -10 -10 --------- Run | Yrd Mat Min Sub Machines Accessed 2 | . 1 . 1 Terminals 1 | . 1 . . Fabricators . | . . . . Repair Stations . | . . . . Recycling Units . | . . . . Scanalyzers . | . . . . Garrison Access . | . . . . Total Hacks 6 | . 3 . 3 Successful 5 | . 2 . 3 Failed 1 | . 1 . . Catastrophic . | . . . . Database Lockouts . | . . . . Manual 2 | . 2 . . Terminals 3 | . 3 . . Fabricators . | . . . . Repair Stations . | . . . . Recycling Units . | . . . . Scanalyzers . | . . . . Garrison Access . | . . . . Terminal Hacks 4 | . 1 . 3 Record 3 | . . . 3 Branch Access Points 1 | . 1 . . Fabricator Hacks . | . . . . Repair Station Hacks . | . . . . Recycling Unit Hacks . | . . . . Scanalyzer . | . . . . Garrison Access Hacks . | . . . . Unauthorized Hacks 1 | . 1 . . Terminals 1 | . 1 . . Operators 1 | . 1 . . Fabricators . | . . . . Repair Stations . | . . . . Recycling Units . | . . . . Scanalyzers . | . . . . Garrison Access . | . . . . Data Cores Recovered . | . . . . Used . | . . . . Hacking Detections 1 | . 1 . . Full Trace Events . | . . . . Feedback Events . | . . . . Feedback Blocked . | . . . . Robot Schematics Acquired . | . . . . Robots Built . | . . . . Authchips . | . . . . Time . | . . . . Total Robot Build Rating . | . . . . Part Schematics Acquired . | . . . . Parts Built . | . . . . Authchips . | . . . . Time . | . . . . Total Part Build Rating . | . . . . Parts Repaired . | . . . . Time . | . . . . Parts Recycled . | . . . . Recycled Matter . | . . . . Retrieved Matter . | . . . . Retrieved Components . | . . . . Parts Scanalyzed . | . . . . Part Schematics Acquired . | . . . . Parts Damaged . | . . . . Bothacking | -11 -10 -10 -10 ------------ Run | Yrd Mat Min Sub Used RIF Installer . | . . . . Robots Hacked . | . . . . Non-combat . | . . . . Combat . | . . . . Robot Hacks Applied . | . . . . Relay Couplers Released . | . . . . Fabnet Peak Effective % . | . . . . Robots Rewired . | . . . . Allies Hacked . | . . . . Hacks Repelled . | . . . . Allies | -11 -10 -10 -10 -------- Run | Yrd Mat Min Sub Total Allies 3 | . . 3 . Largest Group 3 | . . 3 1 Highest-Rated Group 40 | . . 40 16 Highest-Rated Ally 16 | . . 16 16 Total Orders . | . . . . Ally Attacks 19 | . . 15 4 Total Damage 224 | . . 161 63 Kills 1 | . . 1 . Allies Corrupted . | . . . . Allies Melted . | . . . . Intel | -11 -10 -10 -10 ------- Run | Yrd Mat Min Sub Robot Analysis Total . | . . . . Derelict Logs Recovered 3 | . . 2 1 Drone Launches . | . . . . Drone Recoveries . | . . . . Exploration | -11 -10 -10 -10 ------------- Run | Yrd Mat Min Sub Turns Passed 2822 | 92 86 768 1876 Spaces Moved 1472 | 45 47 329 1051 Core 4 | 4 . . . Treads 1468 | 41 47 329 1051 Legs . | . . . . Wheels . | . . . . Hover . | . . . . Flight . | . . . . Fastest Speed 50 | 50 160 160 160 Average Speed 159 | 150 160 160 160 Slowest Speed 160 | 160 160 160 160 Overloaded Moves . | . . . . Propulsion Burnouts . | . . . . Robots Hopped . | . . . . Cave-ins Triggered 1 | . . . 1 Exploration Rate (%) 42 | 4 15 80 70 Regions Visited 3 Branch Regions 2 Pre-discovered Areas . | . . . . Known Exits Taken 2 | . 1 1 . Unknown Exits Taken 1 | 1 . . . Scrap Searched 5 | . . . 5 Spaces Dug 10 | . 6 . 4 Terrain Destroyed 90 | . 6 . 84 Melee . | . . . . Projectile 2 | . . . 2 AOE 88 | . 6 . 82 Terrain Rammed . | . . . . Walls Destroyed . | . . . . Machines Disabled . | . . . . Actions | -11 -10 -10 -10 --------- Run | Yrd Mat Min Sub Total 1837 | 62 53 571 1151 Wait 257 | . . 241 16 Move 1469 | 44 46 328 1051 Hop . | . . . . Pick Up 18 | 8 3 2 5 Fast Attach 2 | . . . 2 Attach 8 | 6 . . 2 Detach . | . . . . Swap 9 | . 1 . 8 Drop 7 | . . . 7 Fire 49 | 4 3 . 42 Melee 18 | . . . 18 Ram . | . . . . Kick . | . . . . Crush . | . . . . Escape Stasis . | . . . . Rewire . | . . . . Trap . | . . . . Miscellaneous . | . . . . Route ------- -11/Scrapyard -10/Materials (discovered 2 exits: *Min x2) -10/Mines (discovered 4 exits: [*Mat x2] / [*Exi] / *Sub) -10/Subcaves (discovered 1 exit: [*Mat]) History --------- Turn | Location | Event 46 | -11/Scrapyard | Discovered new exit (range 15) 93 | -11/Scrapyard | Entered Materials 138 | -10/Materials | Identified exit to Mines 179 | -10/Materials | Entered Mines 187 | -10/Mines | Assisted by bots powering up and referring to "LRC-V3" 218 | -10/Mines | Found a damaged Exp. Sensor Array with a note attached 221 | -10/Mines | Found Prototype Device 249 | -10/Mines | Deemed a non-threat by the Exiles lab entrance 249 | -10/Mines | Discovered new exit (range 5) 280 | -10/Mines | A weapon hastily lodged in a ceiling crevice suddenly fell to the ground 313 | -10/Mines | Build established: Mutant 356 | -10/Mines | Discovered new exit (range 7) 529 | -10/Mines | Discovered new exit (range 6) 601 | -10/Mines | Identified exit to Subcaves 947 | -10/Mines | Entered Subcaves 947 | -10/Subcaves | Accompanied by 1 ally 975 | -10/Subcaves | Shifting Twisted Machinery released Sub. Laser 979 | -10/Subcaves | Shifting Twisted Machinery released Sub. Beam Cannon 1050 | -10/Subcaves | Shifting Twisted Machinery released Mak. Light Armor Plating 1313 | -10/Subcaves | Crushed by falling debris 1313 | -10/Subcaves | Core integrity fell below 50% 1409 | -10/Subcaves | Ambushed by Subdwellers from Twisted Machinery 1799 | -10/Subcaves | Visited Clippyterm 1804 | -10/Subcaves | Learned Research machine intel 2072 | -10/Subcaves | A swath of the cavern ceiling suddenly collapsed 2298 | -10/Subcaves | A swath of the cavern ceiling suddenly collapsed 2347 | -10/Subcaves | Core integrity fell below 20% 2420 | -10/Subcaves | Learned 2 Materials zone layouts 2529 | -10/Subcaves | Discovered new exit (range 9) 2784 | -10/Subcaves | Shifting Twisted Machinery released Battle Rifle 2823 | -10/Subcaves | Destroyed by Shrapnel Trap Last Messages --------------- 02372_ Acquired 15 matter. 02404_ Acquired 9 matter. 02420_ Acquired derelict log, extracted data. Data stored: Materials zone layouts (x2). 02441_ Acquired 11 matter. 02518_ KN-JVY(R) destroyed. 02529_ EXIT=FOUND 02541_ Acquired 37 matter. 02625_ Lgt. Treads destroyed. 02629_ Sub. Machine Gun destroyed. 02635_ 5I-Z0O(R) destroyed. 02639_ Acquired 28 matter. 02649_ Searching scrap... 02649_ Found Piercing Trap. 02649_ Found Mak. Spear. 02649_ Found 46 Matter. Battle Rifle falls loose from the Twisted Machinery. 02823_ Triggered Shrapnel Trap. 02823_ An expanding cloud of shrapnel blasts out in all directions. 02823_ Lgt. Treads destroyed. Map ----- +----------------------------------------------------+ | ### #???????# ##??????????????????????? | | ### #####???????####???????????????????????? | | #% # ##?????????????????????????????????????? | | #?????????????????????????????????????? | | *# # #????????????????????????????????????? | | #### " "#???????????????????????????????????? | | ##### "" #??????????????????????????????????? | | ###""" % ????????????????????????????????? | | #?# ???????????????????????????????? | | # #??# ""???????????????????????????????? | | #??? " ??????????????????????????????? | | #???? ???###?????????????????????????? | | ##???? #??" ??????????????????????????? | | #?????? " ## ??????????????????????????? | | ## ##?????? " # ???????????????????????????? | | #?####???????"" ???????????????????????????? | | ######???????? ????????????????????????????? | | ##??????? ????????????????????????????? | | #???????# #??????????##????????????????? | | #???????# #?????????? ##???????????????? | | #####???????# #?????????# ##??????????????? | | #??????????## #?######## #??????????????? | | #??????????# ### " #??????????????? | | ##?????????# #^ ^" ????????????????? | | ??????#### ## ^ #[ ??????????????????? | | ????# ## # ##@#???????????????????? | | #??## ## # # ##??????????????????? | | ###?## ### ##?????????????????? | | ## #### #??## ##????????????????? | | ?# ## #???# ## #????????????????? | | ?? # #??## ## #??????????????? | | ???# #### ## #??????????????? | | ?### ### #??????????????? | | ## ### # #??????????????? | | # ##?## # # ##### #??????????????? | | # ##???####### ##???## #??????????????? | | # #??????????# #?????? ###??????????????? | | ##?????????# #?????? #????????????????? | | ###??????????## #?????? #????????????????? | | ###?????????????# #?????##????????????????? | | #???????????????# # ??????????????????????? | | ????????????????# ##?????????????????????? | | ????????????????? ##??????????????????????? | | ?????????????????######???????????????????????? | | ??????????????????????????????????????????????? | | ??????????????????????????????????????????????? | | ??????????????????????????????????????????????? | | ??????????????????????????????????????????????? | | ??????????????????????????????????????????????? | | ??????????????????????????????????????????????? | +----------------------------------------------------+ Best States ------------- Heat Dissipation 25 Energy Generation 10 Energy Capacity 250 Matter Stores 300 Matter Capacity 300 Sight Range 16 Terrain Scan Density 10 Armor Coverage 100 Evasion (%) 40 Recoil Reduction 2 Item Schematics ----------------- None Robot Schematics ------------------ None Fabricated ------------ Nothing Alien Tech Used ----------------- None Achievements -------------- None Challenges ------------ None Game ------ Seed LegActuatorGun Manual? 0 Play Time 00:16:37 Cumulative 54.1 hours Start 2025.01.07 @ 19:10:32 End 2025.01.07 @ 19:27:44 Sessions 1 Manual Loads 0 Difficulty Rogue Special Mode None Game No. 107 Rogue 107 Adventurer 0 Explorer 0 Win Type - Total 0 Types 0/0/0/0/0/0/0/0/0 Lore% 19 Gallery% 34 Achievement% 30 Wizard Run 0 Options --------- Layout 0 ASCII 0 Keyboard 0 Movement Mouse Keybinds 0 Fullscreen 1 Font 24/Smallcaps Map View 76x50 Zoom Use 0% Tactical HUD 1 Map Filters NONE Filters NONE Steam 1 RUN: 7f170354-70c6-4550-81f6-2a1db41da648